Workbook

Sheet Arbeitszeittabelle
B2: ARBEITSZEITTABELLE | G2: NOD PUBLISHERS
B4: 222 2nd Ave | G4: Mitarbeitername: | I4: Shir Rosenstein
B5: Appartement 100 | G5: Name des Vorgesetzten: | I5: Naoki Kaneko
B6: Bellevue, WA 54321 | G6: Beginn der Woche: | I6: =TODAY() -> 2023-03-23
B7: (502) 555-0123
B9: Wochentag | C9: Einstempelzeit | D9: Pausen (Minuten) | E9: Ausstempelzeit | G9: Gesamt [h]:mm | H9: Regulär [h]:mm | I9: Überstunden [h]:mm | J9: Krank [h]:mm | K9: Feiertag [h]:mm | L9: Urlaub [h]:mm
B10: =Beginn_der_Woche -> 2023-03-23 | C10: 09:05:00 | D10: 15 | E10: 18:00:00 | G10: =MROUND((IF(OR(C10="",E10=""),0,IF(E10<C10,E10+1-C10,E10-C10))-D10/1440),1/1440) -> 0.3611111111 | H10: 0.3333333333 | I10: 0.02777777778
B11: =B10+1 -> 2023-03-24 | C11: 09:05:00 | D11: 30 | E11: 17:45:00 | G11: =MROUND((IF(OR(C11="",E11=""),0,IF(E11<C11,E11+1-C11,E11-C11))-D11/1440),1/1440) -> 0.3402777778 | H11: 0.3333333333 | I11: 0.006944444444
B12: =B11+1 -> 2023-03-25 | C12: 09:00:00 | D12: 45 | E12: 18:30:00 | G12: =MROUND((IF(OR(C12="",E12=""),0,IF(E12<C12,E12+1-C12,E12-C12))-D12/1440),1/1440) -> 0.3645833333 | H12: 0.3333333333 | I12: 0.03125
B13: 2023-03-26 | C13: 09:00:00 | D13: 45 | E13: 18:30:00 | G13: =MROUND((IF(OR(C13="",E13=""),0,IF(E13<C13,E13+1-C13,E13-C13))-D13/1440),1/1440) -> 0.3645833333 | H13: 0.3333333333 | I13: 0.03125
B14: 2023-03-27 | G14: =MROUND((IF(OR(C14="",E14=""),0,IF(E14<C14,E14+1-C14,E14-C14))-D14/1440),1/1440) -> 0 | J14: 0.3333333333
B15: 2023-03-28 | G15: =MROUND((IF(OR(C15="",E15=""),0,IF(E15<C15,E15+1-C15,E15-C15))-D15/1440),1/1440) -> 0
B16: 2023-03-29 | G16: =MROUND((IF(OR(C16="",E16=""),0,IF(E16<C16,E16+1-C16,E16-C16))-D16/1440),1/1440) -> 0
G17: Ergebnis | H17: =SUM(H10:H16) -> 1.333333333 | I17: =SUM(I10:I16) -> 0.09722222222 | J17: =SUM(J10:J16) -> 0.3333333333 | K17: =SUM(K10:K16) -> 0 | L17: =SUM(L10:L16) -> 0
B19: Wochentag | C19: Einstempelzeit | D19: Pausen (Minuten) | E19: Ausstempelzeit | G19: Gesamt [h]:mm | H19: Regulär [h]:mm | I19: Überstunden [h]:mm | J19: Krank [h]:mm | K19: Feiertag [h]:mm | L19: Urlaub [h]:mm
B20: =B16+1 -> 2023-03-30 | G20: =MROUND((IF(OR(C20="",E20=""),0,IF(E20<C20,E20+1-C20,E20-C20))-D20/1440),1/1440) -> 0
B21: =B20+1 -> 2023-03-31 | G21: =MROUND((IF(OR(C21="",E21=""),0,IF(E21<C21,E21+1-C21,E21-C21))-D21/1440),1/1440) -> 0
B22: 2023-04-01 | G22: 0
B23: 2023-04-02 | G23: 0
B24: 2023-04-03 | G24: 0
B25: 2023-04-04 | G25: 0
B26: 2023-04-05 | G26: 0
G27: Ergebnis | H27: =SUM(H20:H26) -> 0 | I27: =SUM(I20:I26) -> 0 | J27: =SUM(J20:J26) -> 0 | K27: =SUM(K20:K26) -> 0 | L27: =SUM(L20:L26) -> 0
H29: Regulär | I29: Überstunden | J29: Krank | K29: Feiertag | L29: Urlaub
G30: Satz/Stunde: | H30: 15.00 | I30: =1.5*H30 -> 22.50 | J30: 15.00 | K30: 15.00 | L30: 15.00
B31: Unterschrift des Arbeitnehmers | E31: Datum | G31: Gehalt gesamt: | H31: =ROUND((H27+H17)*24*H30,2) -> 480.00 | I31: =ROUND((I27+I17)*24*I30,2) -> 52.50 | J31: =ROUND((J27+J17)*24*J30,2) -> 120.00 | K31: =ROUND((K27+K17)*24*K30,2) -> 0 | L31: =ROUND((L27+L17)*24*L30,2) -> 0
B33: Unterschrift des Vorgesetzten | E33: Datum | G33: Gesamtlohnsumme: | K33: =SUM(H31:L31) -> 652.50
